Cogmind - Beta 13 @@@ ROGUE MODE // 2024.07.14 @ 16:25:17 Player: weedlord420 Result: Self-destructed Performance ------------- Evolutions (2) 1000 Regions Visited (6) 1200 Robots Destroyed (76) 380 Value Destroyed (3156) 3156 Prototype IDs (7) 140 Alien Tech Used (0) 0 Bonus (1589) 1589 TOTAL SCORE: 7465 Bonus ------- High Alert Combat Kills 512 Follower Combat Kills 77 Entered Garrisons 200 Used RIF Installer 500 Aligned with FarCom 300 Cogmind --------- Core Integrity 107/550 Matter 300/300 Energy 150/150 System Corruption 2% Temperature Cool (1) Movement Flying (50) Location -8/Garrison Parts ------- > --- POWER (1) -------- Micro Nuclear Core > --- PROPULSION (4) --- Flying Fortress v7 > --- UTILITY (4) ------ Medium Storage Unit Hacking Suite > --- WEAPON (2) ------- Power Maul > --- INVENTORY (10) --- Improved Heat Sink Compact Matter Pod (150) Experimental Sensor Array Force Booster Hacking Suite Relay Coupler [NC] (41) Grenade Launcher Improved Datajack Peak State ------------ > --- POWER ------------ Deuterium Engine > --- PROPULSION ------- Flying Fortress v7 > --- UTILITY ---------- Medium Storage Unit Experimental Sensor Array Improved Light Armor Plating Hacking Suite > --- WEAPON ----------- Field Laser Assault Cannon > --- INVENTORY -------- Improved Heat Sink Compact Matter Pod Grenade Launcher Improved Datajack [Rating: 58] Favorites ----------- Power Ion Engine Engine Ion Engine Power Core Micro Nuclear Core Propulsion Light Treads Treads Light Treads Flight Unit Flying Fortress v7 Utility Hacking Suite Device Improved Heat Sink Storage Medium Storage Unit Hackware Hacking Suite Protection Improved Light Armor Plating Weapon Field Laser Energy Gun Field Laser Ballistic Gun Assault Rifle Ballistic Cannon Assault Cannon Launcher Proton Missile Launcher Impact Weapon Great Maul Slashing Weapon Longsword +1 Special Melee Weapon Improved Datajack Build | -11 -10 -10 -10 -9 -8 -8 ------- Run | Yrd Mat Min Exi Min Mat Gar Slots Evolved 4 | . . . . . 4 . Power . | . . . . . . . Propulsion 2 | . . . . . 2 . Utility 2 | . . . . . 2 . Weapon . | . . . . . . . Parts Attached 44 | 6 5 2 5 1 14 11 Power 4 | 1 . . . 1 1 1 Engine 3 | 1 . . . 1 1 . Core 1 | . . . . . . 1 Reactor . | . . . . . . . Propulsion 9 | 2 1 . 1 . 3 2 Treads 4 | 2 1 . 1 . . . Leg . | . . . . . . . Wheel . | . . . . . . . Hover . | . . . . . . . Flight 5 | . . . . . 3 2 Utility 10 | 1 2 . . . 5 2 Device 4 | . . . . . 3 1 Storage 2 | 1 1 . . . . . Processor . | . . . . . . . Hackware 1 | . 1 . . . . . Protection 3 | . . . . . 2 1 Artifact . | . . . . . . . Weapon 21 | 2 2 2 4 . 5 6 Energy Gun 7 | . . 1 2 . 3 1 Energy Cannon . | . . . . . . . Ballistic Gun 3 | 2 1 . . . . . Ballistic Cannon 2 | . . 1 1 . . . Launcher 4 | . . . . . 1 3 Special Weapon . | . . . . . . . Impact Weapon 2 | . . . . . 1 1 Slashing Weapon 1 | . . . 1 . . . Piercing Weapon . | . . . . . . . Special Melee Weapon 2 | . 1 . . . . 1 Unidentified Prototypes 5 | . . . 2 . 3 . Corrupted Parts 1 | . . . . . . 1 System Corruption 1 | . . . . . . 1 Parts Lost 9 | . . . . 1 2 6 Power 2 | . . . . . 1 1 Propulsion 1 | . . . . 1 . . Utility 3 | . . . . . . 3 Weapon 3 | . . . . . 1 2 Highest Loss Streak 3 | . . . . 1 2 3 To Critical Strikes . | . . . . . . . Average Slot Usage (%) 86 | . 98 99 98 86 64 63 Engine 12 | . 14 14 14 14 8 3 Treads 17 | . 27 28 27 15 . . Flight 2 | . . . . . 9 8 Device 1 | . . . . . 8 3 Storage 12 | . 14 14 14 14 9 9 Hackware 12 | . 12 14 14 14 9 9 Protection 2 | . . . . . 8 12 Energy Gun 7 | . . 10 13 14 3 . Ballistic Gun 8 | . 27 5 . . . . Ballistic Cannon 6 | . . 10 13 14 . . Impact Weapon 1 | . . . . . 6 9 Naked Turns . | . . . . . . . Heaviest Build 40 | 13 18 23 23 27 31 40 Greatest Support 50 | 40 40 40 40 40 50 50 Greatest Overweight (x) 10 | 1 . . 1 1 1 10 Average Overweight (x) . | . . . . . . . Largest Inventory Capacity 10 | 8 10 10 10 10 10 10 Average Capacity 9 | 5 9 10 10 10 10 10 Most Carried 10 | 5 6 10 10 10 10 10 Average Carried 7 | 3 4 9 9 9 6 7 Final Capacity 10 | 8 10 10 10 10 10 10 Final Carried 10 | . 6 10 10 10 8 8 Class Distribution -------------------- 100% | Mutant Dominant Class ---------------- Mutant | -10/Materials Mutant | -10/Mines Mutant | -10/Exiles Mutant | -9/Mines Mutant | -8/Materials Mutant | -8/Garrison Resources | -11 -10 -10 -10 -9 -8 -8 ----------- Run | Yrd Mat Min Exi Min Mat Gar Matter Collected 1087 | 190 334 89 . 179 150 145 Remotely . | . . . . . . . Salvage Created 2552 | . 463 26 . 182 810 1071 Parts 124 | . 42 . . 21 38 23 Haulers Intercepted 3 | . 1 . . . 2 . Recyclers Shooed . | . . . . . . . Parts Field Recycled . | . . . . . . . Retrieved Matter . | . . . . . . . Parts Self-Destructed . | . . . . . . . Prevented . | . . . . . . . Kills | -11 -10 -10 -10 -9 -8 -8 ------- Run | Yrd Mat Min Exi Min Mat Gar Combat Hostiles Destroyed 60 | . 11 2 . 10 11 26 Melee 10 | . . . . . . 10 Guns 22 | . 11 1 . 7 3 . Cannons 6 | . . 1 . 3 2 . AOE 3 | . . . . . . 3 Classes Destroyed 14 | . 7 1 . 2 2 2 Worker 2 | . 1 . . . 1 . Builder 1 | . . . . 1 . . Tunneler 2 | . 1 . . . 1 . Hauler 3 | . 1 . . . 2 . Recycler 2 | . . . . . 2 . Operator 4 | . 2 . . . 2 . Watcher 4 | . 3 . . . 1 . Swarmer 26 | . 6 . . 8 2 10 Grunt 13 | . 5 . . 1 4 3 Brawler 1 | . . . . 1 . . Sentry 13 | . . . . . 5 8 Hunter 2 | . . . . . . 2 Programmer 3 | . . . . . . 3 Assembled 2 | . . 2 . . . . Best Kill Streak 5 | . 5 1 . 3 4 5 Combat Bots Only 5 | . 3 1 . 3 3 5 Max Kills in Single Turn 3 | . 1 1 . 1 1 3 Gunslinging . | . . . . . . . Exploded 3 | . . . . . . 3 Melee 1 | . . . . . . 1 Uniques/NPCs Destroyed . | . . . . . . . Combat | -11 -10 -10 -10 -9 -8 -8 -------- Run | Yrd Mat Min Exi Min Mat Gar Hostile Shots Fired 368 | . 53 8 . 39 61 207 Missed 120 | . 8 4 . 13 27 68 Damage Taken 3250 | . 450 101 . 256 506 1937 Core 548 | . 74 15 . 16 51 392 Absorbed by Shields . | . . . . . . . Regen/Repaired (Parts) 177 | . 125 . . . 52 . Core Remaining (%) 79 | 100 . . . 58 . . Volleys Fired 108 | 1 52 8 . 23 19 5 Largest 2 | 2 2 2 . 2 2 1 Hottest 110 | 40 40 107 . 107 110 55 Shots Fired 210 | 2 106 15 . 45 37 5 Gun 181 | 2 106 13 . 23 35 2 Cannon 26 | . . 2 . 22 2 . Launcher 3 | . . . . . . 3 Special . | . . . . . . . Kinetic 145 | 2 106 13 . 22 2 . Thermal 26 | . . 2 . 23 1 . Explosive 2 | . . . . . . 2 Electromagnetic 37 | . . . . . 34 3 Robot Hit Streak 12 | . 12 4 . 6 10 . Robot Miss Streak 6 | . 5 4 . 5 6 . Penetration Max . | . . . . . . . Secondary Targets 1 | . . . . . 1 . Max Gunslinging Chain 1 | . . . . . 1 . Shots Hit Robots 182 | . 56 7 . 22 40 57 Core Hits 74 | . 32 4 . 13 16 9 Critical Kills 6 | . . . . . 2 4 Critical Parts Destroyed 28 | . . . . . 8 20 Critical Strikes 37 | . . . . 1 10 26 Burn 1 | . . . . 1 . . Smash 36 | . . . . . 10 26 Melee Attacks 120 | . 1 . . . 29 90 Impact 119 | . . . . . 29 90 Slashing . | . . . . . . . Piercing . | . . . . . . . Sneak Attacks 9 | . 1 . . . 8 . Combat Hostiles . | . . . . . . . Follow-up Attacks . | . . . . . . . Damage Inflicted 5337 | . 589 100 . 441 1534 2673 Guns 1159 | . 582 71 . 271 235 . Cannons 242 | . . 26 . 165 51 . Explosions 133 | . . . . . . 133 Melee 3788 | . . . . . 1248 2540 Ramming 15 | . 7 3 . 5 . . Kinetic 879 | . 582 81 . 165 51 . Thermal 304 | . . 16 . 271 17 . Explosive 133 | . . . . . . 133 Electromagnetic 218 | . . . . . 218 . Impact 3788 | . . . . . 1248 2540 Slashing . | . . . . . . . Piercing . | . . . . . . . Highest Corruption 2 | . 1 1 1 1 . 2 Average Corruption 1 | . 1 1 1 1 . 1 Corruption Purged . | . . . . . . . Corruption Blocked . | . . . . . . . Effects 36 | . 11 7 3 13 . 2 Message Errors 6 | . 1 . 2 3 . . Matter Fused 9 | . 2 4 . 3 . . Heat Flow Errors 6 | . 2 . . 4 . . Energy Discharges 4 | . 1 . 1 2 . . Data Loss (minor) 1 | . . 1 . . . . Data Loss (major) 2 | . . 1 . . . 1 Misfires 3 | . 3 . . . . . Alerts 2 | . 1 . . . . 1 Weapon Failures 3 | . 1 1 . 1 . . Overload Shots . | . . . . . . . Overflow Damage 1487 | . . . . . 522 965 Projectiles . | . . . . . . . Explosions . | . . . . . . . Melee 1487 | . . . . . 522 965 Knockbacks 2 | . . . . . 1 1 Impact 2 | . . . . . 1 1 Kinetic . | . . . . . . . Secondary . | . . . . . . . Self-Inflicted Damage . | . . . . . . . Shots . | . . . . . . . Rammed 7 | . 3 2 . 2 . . Targets Rammed 7 | . 3 2 . 2 . . Kicked . | . . . . . . . Crushed . | . . . . . . . Highest Temperature 240 | . 232 45 . 240 118 68 Average Temperature 66 | . 57 24 . 89 43 17 Received Heat Transfer 1053 | . 153 . . . 225 675 Siege Activations . | . . . . . . . Robots Corrupted 1 | . . . . . 1 . Combat Hostiles 1 | . . . . . 1 . Parts Fried 30 | . . . . . 10 20 Impact Corruptions 51 | . . . . . 14 37 Robots Melted . | . . . . . . . Combat Hostiles . | . . . . . . . Parts Melted 1 | . . . . 1 . . Heat Transferred 740 | . . 37 . 666 37 . Parts Sabotaged . | . . . . . . . Parts Stolen . | . . . . . . . Parts Stripped . | . . . . . . . Power Chain Reactions . | . . . . . . . Alert | -11 -10 -10 -10 -9 -8 -8 ------- Run | Yrd Mat Min Exi Min Mat Gar Peak Influence 1314 | . 139 33 . 138 474 1314 Initial 262 | . . 8 . . . 262 Average 187 | . 46 9 . 48 305 880 Maximum Alert Level 4 | . . . . . 2 4 Low Security (%) 75 | 100 100 100 . 100 14 . Level 1 9 | . . . . . 69 7 Level 2 5 | . . . . . 16 22 Level 3 4 | . . . . . . 31 Level 4 5 | . . . . . . 38 Level 5 . | . . . . . . . High Security . | . . . . . . . Max Security . | . . . . . . . Squads Dispatched 4 | . 2 . . . 2 . Investigation . | . . . . . . . Extermination . | . . . . . . . Reinforcement 4 | . 2 . . . 2 . Assault . | . . . . . . . Garrison . | . . . . . . . Intercept . | . . . . . . . Searches Triggered . | . . . . . . . Construction Impeded . | . . . . . . . Haulers Reinforced . | . . . . . . . Active Scanning Responses . | . . . . . . . Cargo Convoy Interrupts . | . . . . . . . Stealth | -11 -10 -10 -10 -9 -8 -8 --------- Run | Yrd Mat Min Exi Min Mat Gar Distress Signals 3 | . 1 . . . 2 . Communications Jammed . | . . . . . . . Distress Signals . | . . . . . . . Times Spotted 84 | . 22 2 . 11 22 27 Peak Tracking Total 7 | . 4 1 . 3 5 7 Tactical Retreats 5 | . 2 . . . 1 2 Traps | -11 -10 -10 -10 -9 -8 -8 ------- Run | Yrd Mat Min Exi Min Mat Gar Traps Triggered 7 | . 1 1 . . 1 4 Indirectly . | . . . . . . . Trap Hack Attempts . | . . . . . . . Triggered . | . . . . . . . Disarmed . | . . . . . . . Reprogrammed . | . . . . . . . Reused . | . . . . . . . Traps Extracted . | . . . . . . . Installed . | . . . . . . . Triggered 1 | . . 1 . . . . Machines | -11 -10 -10 -10 -9 -8 -8 ---------- Run | Yrd Mat Min Exi Min Mat Gar Machines Disabled 14 | . . . . 2 4 8 Max in Single Turn 3 | . . . . 1 3 2 Garrison Relay 4 | . . . . . . 4 Phase Generator 1 | . . . . . . 1 Machines Repaired . | . . . . . . . Machines Dismantled . | . . . . . . . Machines Sabotaged . | . . . . . . . Overloaded Fab Kills . | . . . . . . . Hacking | -11 -10 -10 -10 -9 -8 -8 --------- Run | Yrd Mat Min Exi Min Mat Gar Machines Accessed 19 | . 7 1 . . 8 3 Terminals 14 | . 6 . . . 5 3 Fabricators . | . . . . . . . Repair Stations 2 | . 1 . . . 1 . Recycling Units . | . . . . . . . Scanalyzers 1 | . . . . . 1 . Garrison Access 1 | . . . . . 1 . Total Hacks 48 | . 20 1 . . 21 6 Successful 21 | . 8 1 . . 11 1 Failed 27 | . 12 . . . 10 5 Catastrophic 4 | . 4 . . . . . Database Lockouts . | . . . . . . . Manual 15 | . 2 . 1 . 12 . Terminals 38 | . 18 . . . 14 6 Fabricators . | . . . . . . . Repair Stations 6 | . 2 . . . 4 . Recycling Units . | . . . . . . . Scanalyzers 2 | . . . . . 2 . Garrison Access 1 | . . . . . 1 . Terminal Hacks 12 | . 6 1 . . 4 1 Part Schematic 1 | . . . . . 1 . Prototype ID Bank 1 | . . . . . 1 . Open Door 1 | . . 1 . . . . Unreport Threat 3 | . 1 . . . 2 . Locate Traps 2 | . 2 . . . . . Registered Components 1 | . 1 . . . . . Zone Layout 2 | . 2 . . . . . Patrol Navigation 1 | . . . . . . 1 Fabricator Hacks . | . . . . . . . Repair Station Hacks 4 | . 2 . . . 2 . Scan Component 2 | . 1 . . . 1 . Repair 2 | . 1 . . . 1 . Recycling Unit Hacks . | . . . . . . . Scanalyzer 2 | . . . . . 2 . Insert Component 1 | . . . . . 1 . Analyze 1 | . . . . . 1 . Garrison Access Hacks 1 | . . . . . 1 . Unlock Access 1 | . . . . . 1 . Unauthorized Hacks 2 | . . . . . 2 . Terminals 2 | . . . . . 2 . Assimilate 2 | . . . . . 2 . Fabricators . | . . . . . . . Repair Stations . | . . . . . . . Recycling Units . | . . . . . . . Scanalyzers . | . . . . . . . Garrison Access . | . . . . . . . Data Cores Recovered . | . . . . . . . Used . | . . . . . . . Hacking Detections 17 | . 7 . . . 7 3 Full Trace Events 1 | . . . . . . 1 Feedback Events . | . . . . . . . Feedback Blocked . | . . . . . . . Robot Schematics Acquired . | . . . . . . . Robots Built . | . . . . . . . Authchips . | . . . . . . . Time . | . . . . . . . Total Robot Build Rating . | . . . . . . . Part Schematics Acquired 2 | . . . . . 2 . Parts Built . | . . . . . . . Authchips . | . . . . . . . Time . | . . . . . . . Total Part Build Rating . | . . . . . . . Parts Repaired 2 | . 1 . . . 1 . Time 64 | . 26 . . . 38 . Parts Recycled . | . . . . . . . Recycled Matter . | . . . . . . . Retrieved Matter . | . . . . . . . Retrieved Components . | . . . . . . . Parts Scanalyzed 1 | . . . . . 1 . Part Schematics Acquired 1 | . . . . . 1 . Parts Damaged . | . . . . . . . Bothacking | -11 -10 -10 -10 -9 -8 -8 ------------ Run | Yrd Mat Min Exi Min Mat Gar Used RIF Installer 1 | . . . . . . 1 Robots Hacked 1 | . 1 . . . . . Non-combat 1 | . 1 . . . . . Combat . | . . . . . . . Robot Hacks Applied 1 | . 1 . . . . . parse_system 1 | . 1 . . . . . Relay Couplers Released 17 | . . . . . . 17 Machine Destruction 17 | . . . . . . 17 Fabnet Peak Effective % . | . . . . . . . Robots Rewired . | . . . . . . . Allies Hacked . | . . . . . . . Hacks Repelled . | . . . . . . . Allies | -11 -10 -10 -10 -9 -8 -8 -------- Run | Yrd Mat Min Exi Min Mat Gar Total Allies 4 | . . . . 2 2 . Largest Group 2 | . . . . 2 2 2 Highest-Rated Group 45 | . . . . 45 45 20 Highest-Rated Ally 31 | . . . . 31 31 10 Total Orders . | . . . . . . . Ally Attacks 20 | . . . . . 20 . Total Damage 275 | . . . . . 275 . Kills 4 | . . . . . 4 . Allies Corrupted . | . . . . . . . Allies Melted . | . . . . . . . Intel | -11 -10 -10 -10 -9 -8 -8 ------- Run | Yrd Mat Min Exi Min Mat Gar Robot Analysis Total . | . . . . . . . Derelict Logs Recovered 3 | . . 2 . 1 . . Drone Launches . | . . . . . . . Drone Recoveries . | . . . . . . . Exploration | -11 -10 -10 -10 -9 -8 -8 ------------- Run | Yrd Mat Min Exi Min Mat Gar Turns Passed 6045 | 43 1526 978 375 1618 734 771 Spaces Moved 3958 | 39 826 586 225 662 821 799 Core 42 | 38 . . . . . 4 Treads 2302 | 1 826 586 225 662 2 . Legs . | . . . . . . . Wheels . | . . . . . . . Hover . | . . . . . . . Flight 1614 | . . . . . 819 795 Fastest Speed 50 | 50 160 160 160 160 50 50 Average Speed 126 | 77 160 160 160 229 50 51 Slowest Speed 550 | 160 160 160 240 240 240 550 Overloaded Moves . | . . . . . . . Propulsion Burnouts . | . . . . . . . Robots Hopped 3 | . . . . . 3 . Cave-ins Triggered . | . . . . . . . Exploration Rate (%) 71 | 3 96 96 60 91 61 91 Regions Visited 6 Branch Regions 3 Pre-discovered Areas 2 | . . 2 . . . . Known Exits Taken 1 | . . . . . 1 . Unknown Exits Taken 5 | 1 1 1 1 1 . . Scrap Searched 5 | . . 2 . 3 . . Spaces Dug 4 | . . . . . 4 . Terrain Destroyed 192 | . . 1 . 7 21 163 Melee 4 | . . . . . 4 . Projectile 8 | . . 1 . 7 . . AOE 180 | . . . . . 17 163 Terrain Rammed . | . . . . . . . Walls Destroyed . | . . . . . . . Machines Disabled . | . . . . . . . Actions | -11 -10 -10 -10 -9 -8 -8 --------- Run | Yrd Mat Min Exi Min Mat Gar Total 4574 | 50 934 611 241 715 1046 977 Wait 249 | . 38 7 . 22 145 37 Move 3947 | 38 825 585 224 661 815 799 Hop 3 | . . . . . 3 . Pick Up 49 | 5 9 5 2 3 12 13 Fast Attach 7 | 1 . 1 5 . . . Attach 26 | 5 2 . . . 12 7 Detach 3 | . . . . . 2 1 Swap 11 | . 3 1 . 1 2 4 Drop 32 | . 1 2 10 3 7 9 Fire 108 | 1 52 8 . 23 19 5 Melee 120 | . 1 . . . 29 90 Ram . | . . . . . . . Kick . | . . . . . . . Crush 7 | . 3 2 . 2 . . Escape Stasis 12 | . . . . . . 12 Rewire . | . . . . . . . Trap . | . . . . . . . Miscellaneous . | . . . . . . . Route ------- -11/Scrapyard -10/Materials (discovered 4 exits: [*Mat x3] / *Min) -10/Mines (discovered 4 exits: [*Mat x2] / *Exi / [*Sub]) -10/Exiles -9/Mines -8/Materials (discovered 3 exits: *Fac x2 / Gar) -8/Garrison (discovered 3 exits: [*Mat x3]) History --------- Turn | Location | Event 6 | -11/Scrapyard | Discovered new exit (range 15) 44 | -11/Scrapyard | Entered Materials 317 | -10/Materials | Build established: Mutant 333 | -10/Materials | Discovered new exit (range 8) 613 | -10/Materials | Discovered new exit (range 16) 962 | -10/Materials | Repaired Lgt. Treads 1104 | -10/Materials | Discovered new exit (range 16) 1395 | -10/Materials | Discovered new exit (range 16) 1570 | -10/Materials | Entered Mines 1622 | -10/Mines | Assembled infested the area 1688 | -10/Mines | Learned location of Mines (-9) 1733 | -10/Mines | Met a Derelict who couldn't figure out how to use a Trap Extractor 1865 | -10/Mines | Discovered new exit (range 7) 2021 | -10/Mines | YI-UF0 nonchalantly dropped a Grenade Launcher on the ground 2115 | -10/Mines | Deemed a non-threat by the Exiles lab entrance 2115 | -10/Mines | Discovered new exit (range 5) 2187 | -10/Mines | Discovered new exit (range 7) 2260 | -10/Mines | Discovered new exit (range 10) 2548 | -10/Mines | Entered Exiles 2587 | -10/Exiles | Met 8R-AWN 2616 | -10/Exiles | Met EX-HEX 2659 | -10/Exiles | Met EX-BIN 2683 | -10/Exiles | Aligned with FarCom system 2684 | -10/Exiles | Given EX-Vault access code 2726 | -10/Exiles | Opened EX-Vault 2747 | -10/Exiles | Found Prototype Energy Gun 2747 | -10/Exiles | Identified AWS/Thermal 2752 | -10/Exiles | Found Prototype Slashing Weapon 2752 | -10/Exiles | Identified Longsword +1 2768 | -10/Exiles | Found Prototype Flight Unit 2803 | -10/Exiles | Warned to stay clear of 0b10 Research branches 2851 | -10/Exiles | Met EX-DEC 2909 | -10/Exiles | Discovered new exit (range 10) 2923 | -10/Exiles | Left Exiles lab with Flying Fortress v7 2923 | -10/Exiles | Entered Mines 3369 | -9/Mines | Found a damaged Exp. Sensor Array with a note attached 3375 | -9/Mines | Found Prototype Device 3380 | -9/Mines | Learned 8 Materials zone layouts 3860 | -9/Mines | Discovered new exit (range 8) 4541 | -9/Mines | Entered Materials 4541 | -8/Materials | Accompanied by 2 allies 4541 | -8/Materials | Evolved 4 slots: Propulsion x2, Utility x2 4542 | -8/Materials | Identified exit to Factory 4546 | -8/Materials | Led the pair of lost Derelicts to an unsafe place 4548 | -8/Materials | Identified Flying Fortress v7 4551 | -8/Materials | Identified Exp. Sensor Array 4822 | -8/Materials | Repaired Imp. Light Armor Plating 5272 | -8/Materials | Identified exit to Garrison 5275 | -8/Materials | Entered Garrison 5275 | -8/Garrison | Accompanied by 2 allies 5291 | -8/Garrison | Phase Generator disabled 5333 | -8/Garrison | Triggered checkpoint 5345 | -8/Garrison | Spotted B-75 Beast 5361 | -8/Garrison | Triggered checkpoint 5497 | -8/Garrison | Spotted B-75 Beast 5502 | -8/Garrison | Garrison Relay disabled 5616 | -8/Garrison | Discovered new exit (range 15) 5668 | -8/Garrison | Garrison Relay disabled 5721 | -8/Garrison | Triggered checkpoint 5747 | -8/Garrison | Garrison Relay disabled 5763 | -8/Garrison | Triggered checkpoint 5826 | -8/Garrison | Installed Relay Interface Framework 5885 | -8/Garrison | Discovered new exit (range 11) 5955 | -8/Garrison | Discovered new exit (range 10) 5971 | -8/Garrison | Triggered checkpoint 5995 | -8/Garrison | Core integrity fell below 50% 6019 | -8/Garrison | Core integrity fell below 20% 6025 | -8/Garrison | Lost 3 parts (2u1w) 6043 | -8/Garrison | Garrison Relay disabled 6046 | -8/Garrison | Self-destructed Last Messages --------------- Dropped Corrupted Mic. Nuclear Core. Dropped Imp. Heat Sink. Dropped Com. Matter Pod. Acquired Flying Fortress v7. Acquired Corrupted Mic. Nuclear Core. Acquired Imp. Heat Sink. Extracted 10 matter. Acquired Com. Matter Pod. Acquired 10 matter. Integrated Corrupted Mic. Nuclear Core (+1). Acquired 10 matter. Garrison Relay disabled. Relay Coupler [Sentry] tumbles out of relay unit. Relay Coupler [Duelist] tumbles out of relay unit. Relay Coupler [Swarmer] tumbles out of relay unit. Relay Coupler [Demolisher] tumbles out of relay unit. Map ----- +----------------------------------------------------+ | ?????????????????????????????????????????????????? | | ?????????????????????????????????????????????????? | | ?????????????????????????????????????????????????? | | ?????????????????????????????????????????????????? | | ?????????????????????????????????????????????????? | | ?????????????????????????????????????????????????? | | ?????????????????????????????????????????????????? | | ?????????????????????????????????????????????????? | | ?????????????????????????????????????????????????? | | ?????????????????????????????????????????????????? | | ?????????????????????????????????????????????????? | | ?????????????????????????????????????????????????? | | ?????????????????????????????????????????????????? | | ?????????????????????????????????????????????????? | | ##???????????????????????????????????????????????? | | "#???????????????????????????????????????????????? | | "#???????????????????????????????????????????????? | | "#???????????????????????????????????????????????? | | "#???????????????????????????????????????????????? | | #???????????????????????????????????????????????? | | ##???????????????????????????????????????????????? | | #????????????????????????????????????????????????? | | #???????????????????????????#####????????????????? | | #???????????????????????????#=% #????????????????? | | ##??#######??????????########%% ############?????? | | #??#"" ""#??????????# @! % #?????? | | #####! !#######?????##!!!###### #### ### #?????? | | !! #?????#""!""#???# #??# #?####?????? | | % #### #?????#######???# #??# #??????????? | | ##+##### #??? #???????????????# #??# #???????#??? | | ?# #???? #??? #???????????????# #### ##### < #??? | | ?#%#???? #??# #???????????????# #??? | | ##+##### #### ##??????????????#### #??? | | = #??????####???????# ##########??? | | #??????#""#???????# #???????????? | | ^ #??????#T #???????# #???????????? | | ######### ### #??????#" #???????# #???????????? | | ????????# #?# #??????## ######### #???????????? | | ????????# #?# #???????# #???????????? | | ????????# #?# #???????# ######### #???????????? | | ######### ### #######?# #???????# #???????????? | | ## #?# #???????# #???????????? | | ######### ### ## ### ##??????# #???????????? | | ????????# #?# ######?# #???????????? | | ????????# #?# #???????????? | | ????????# #?# #???????????? | | ????????# #?# ## ## ###########???????????? | | ????????# #?# ## ## #?????????????????????? | | ????????# ?" "?????????????????????? | | ????????### " "?????????????????????? | +----------------------------------------------------+ Best States ------------- Heat Dissipation 45 Energy Generation 18 Energy Capacity 275 Matter Stores 300 Matter Capacity 300 Sight Range 16 Terrain Scan Density 10 Armor Coverage 375 Evasion (%) 60 Recoil Reduction 2 Force Boost 20 Offensive Hacking 10 Item Schematics ----------------- Imp. Light Armor Plating | -8/Materials | Hacked Force Booster | -8/Materials | Scanalyzed Robot Schematics ------------------ None Fabricated ------------ Nothing Alien Tech Used ----------------- None Achievements -------------- None Challenges ------------ None Game ------ Seed EtherialCouplerUnit Manual? 0 Play Time 00:39:12 Cumulative 37.9 hours Start 2024.07.14 @ 14:51:46 End 2024.07.14 @ 16:25:17 Sessions 1 Manual Loads 0 Difficulty Rogue Special Mode None Game No. 77 Rogue 76 Adventurer 1 Explorer 0 Win Type - Total 0 Types 0/0/0/0/0/0/0/0/0 Lore% 18 Gallery% 38 Achievement% 32 Wizard Run 0 Options --------- Layout 1 ASCII 0 Keyboard 0 Movement Mouse Keybinds 0 Fullscreen 2 Font 24/Terminus Map View 50x35 Zoom Use 0% Tactical HUD 0 Map Filters NONE Filters NONE Steam 1 RUN: fd8af15c-f720-4dc4-a8b3-2d4f6d34fce4